[Event "CCT Chessable Masters D-II 2024"]
[Site "Online"]
[Date "2024.02.03"]
[Round "51"]
[White "tptagain"]
[Black "Vokhidov, Shamsiddin"]
[Result "1-0"]
[ECO "D38"]
[WhiteElo "2652"]
[BlackElo "2596"]
[Annotator "ChessBase"]
[PlyCount "91"]
[EventDate "2024.01.12"]
[EventType "k.o."]
[EventCountry "NET"]
[SourceTitle "playchess.com"]
[Source "ChessBase"]
[SourceQuality "1"]
[TimeControl "600+2"]

1. d4 {[%emt 0:00:04]} Nf6 {[%emt 0:00:04]} 2. c4 {[%emt 0:00:02]} e6 {[%emt 0:00:01]} 3. Nf3 {[%emt 0:00:02]} d5 {[%emt 0:00:01]} 4. Nc3 {[%emt 0:00:01]} Bb4 {[%emt 0:00:02]} 5. cxd5 {[%emt 0:00:02]} exd5 {[%emt 0:00:01]} 6. Bf4 {[%emt 0:00:02]} Ne4 {[%emt 0:00:17]} 7. Rc1 {[%emt 0:00:01]} Nd7 {[%emt 0:00:07]} 8. Nd2 {[%emt 0:00:06]} Nxc3 {[%emt 0:00:03]} 9. bxc3 {[%emt 0:00:02]} Ba3 {[%emt 0:00:00]} 10. Rb1 {[%emt 0:00:03]} Nb6 {[%emt 0:00:02]} 11. e3 {[%emt 0:00:06]} Bf5 {[%emt 0:00:03]} 12. Rb3 {[%emt 0:00:05]} Bd6 {[%emt 0:00:01]} 13. Qf3 {[%emt 0:00:03]} Bg6 {[%emt 0:00:13]} 14. h4 {[%emt 0:00:05]} h5 {[%emt 0:00:24]} 15. Be2 {[%emt 0:00:18]} Qf6 {[%emt 0:01:02]} 16. Bxd6 {[%emt 0:01:02]} Qxd6 {[%emt 0:00:02]} 17. c4 {[%emt 0:00:39]} c5 {[%emt 0:00:42]} 18. Rb5 {[%emt 0:01:55]} Rc8 {[%emt 0:00:13]} 19. Nb3 {[%emt 0:00:11]} Nxc4 {[%emt 0:00:29]} 20. dxc5 {[%emt 0:00:56]} Qd7 {[%emt 0:01:38]} 21. Nd4 {[%emt 0:00:08]} O-O {[%emt 0:01:15]} 22. Bxc4 {[%emt 0:01:21]} dxc4 {[%emt 0:00:00]} 23. O-O {[%emt 0:00:20]} Rc7 {[%emt 0:00:03]} 24. Rc1 {[%emt 0:00:05]} Rfc8 {[%emt 0:00:26]} 25. c6 {[%emt 0:00:30]} bxc6 {[%emt 0:00:03]} 26. Rc5 {[%emt 0:00:03]} Bd3 {[%emt 0:00:36]} 27. Qxh5 {[%emt 0:00:12]} Qd6 {[%emt 0:00:28]} 28. Nf5 {[%emt 0:00:20]} Qf6 {[%emt 0:00:02]} 29. Qg4 {[%emt 0:00:09]} Rb8 {[%emt 0:00:17]} 30. Nxg7 {[%emt 0:00:25]} Kf8 {[%emt 0:00:55]} 31. Nh5 {[%emt 0:00:52]} Qb2 {[%emt 0:00:03]} 32. R1xc4 {[%emt 0:00:10]} Bxc4 {[%emt 0:00:06]} 33. Rxc4 {[%emt 0:00:20]} c5 {[%emt 0:00:36]} 34. Qf4 {[%emt 0:00:12]} Rc6 {[%emt 0:00:09]} 35. g4 {[%emt 0:00:07]} Rb4 {[%emt 0:00:04]} 36. Rxb4 {[%emt 0:00:06]} Qxb4 {[%emt 0:00:02]} 37. Qg5 {[%emt 0:00:06]} Qd2 {[%emt 0:00:14]} 38. Qg7+ {[%emt 0:00:02]} Ke7 {[%emt 0:00:02]} 39. Qe5+ {[%emt 0:00:01]} Kd7 {[%emt 0:00:13]} 40. Nf6+ {[%emt 0:00:03]} Rxf6 {[%emt 0:00:06]} 41. Qxf6 {[%emt 0:00:01]} Qd1+ {[%emt 0:00:00]} 42. Kh2 {[%emt 0:00:03]} Qd6+ {[%emt 0:00:07]} 43. Qxd6+ {[%emt 0:00:03]} Kxd6 {[%emt 0:00:00]} 44. h5 {[%emt 0:00:02]} Ke7 {[%emt 0:00:01]} 45. Kg2 {[%emt 0:00:03]} c4 {[%emt 0:00:01]} 46. Kf1 {[%emt 0:00:01]} 1-0

[Event "CCT Chessable Masters D-II 2024"]
[Site "Online"]
[Date "2024.02.03"]
[Round "51"]
[White "Mamedov, Rauf"]
[Black "shimastream"]
[Result "1/2-1/2"]
[ECO "A11"]
[WhiteElo "2651"]
[BlackElo "2632"]
[Annotator "ChessBase"]
[PlyCount "56"]
[EventDate "2024.01.12"]
[EventType "k.o."]
[EventCountry "NET"]
[SourceTitle "playchess.com"]
[Source "ChessBase"]
[SourceQuality "1"]
[TimeControl "600+2"]

1. Nf3 {[%emt 0:00:02]} d5 {[%emt 0:00:25]} 2. g3 {[%emt 0:00:02]} Bg4 {[%emt 0:00:12]} 3. Bg2 {[%emt 0:00:01]} Nd7 {[%emt 0:00:01]} 4. h3 {[%emt 0:00:01]} Bh5 {[%emt 0:00:04]} 5. O-O {[%emt 0:00:02]} e6 {[%emt 0:00:04]} 6. d3 {[%emt 0:00:01]} Ngf6 {[%emt 0:00:17]} 7. c4 {[%emt 0:00:01]} c6 {[%emt 0:00:05]} 8. Nc3 {[%emt 0:00:05]} Be7 {[%emt 0:00:06]} 9. cxd5 {[%emt 0:00:16]} exd5 {[%emt 0:00:10]} 10. g4 {[%emt 0:00:08]} Bg6 {[%emt 0:00:02]} 11. Nh4 {[%emt 0:00:02]} Bc5 {[%emt 0:00:42]} 12. d4 {[%emt 0:00:36]} Bb4 {[%emt 0:00:07]} 13. Qb3 {[%emt 0:00:49]} Qe7 {[%emt 0:00:19]} 14. g5 {[%emt 0:00:29]} Nh5 {[%emt 0:00:56]} 15. Nxg6 {[%emt 0:00:03]} hxg6 {[%emt 0:00:02]} 16. e4 {[%emt 0:00:01]} dxe4 {[%emt 0:00:12]} 17. Nxe4 {[%emt 0:00:13]} Nb6 {[%emt 0:00:16]} 18. a3 {[%emt 0:00:42]} Ba5 {[%emt 0:00:50]} 19. Ng3 {[%emt 0:00:13]} O-O-O {[%emt 0:00:27]} 20. Nxh5 {[%emt 0:02:37]} Rxh5 {[%emt 0:00:00]} 21. Bf3 {[%emt 0:00:01]} Rxg5+ {[%emt 0:01:05]} 22. Bxg5 {[%emt 0:00:01]} Qxg5+ {[%emt 0:00:00]} 23. Bg2 {[%emt 0:00:01]} Nd5 {[%emt 0:00:05]} 24. Qg3 {[%emt 0:00:01]} Qf6 {[%emt 0:00:39]} 25. Qe5 {[%emt 0:00:34]} Qh4 {[%emt 0:00:31]} 26. Qg3 {[%emt 0:00:11]} Qf6 {[%emt 0:00:17]} 27. Qe5 {[%emt 0:00:36]} Qh4 {[%emt 0:00:02]} 28. Qg3 {[%emt 0:00:07]} Qf6 {[%emt 0:01:17]} 1/2-1/2

[Event "CCT Chessable Masters D-II 2024"]
[Site "Online"]
[Date "2024.02.03"]
[Round "51"]
[White "shimastream"]
[Black "Mamedov, Rauf"]
[Result "0-1"]
[ECO "D30"]
[WhiteElo "2634"]
[BlackElo "2651"]
[Annotator "ChessBase"]
[PlyCount "70"]
[EventDate "2024.01.12"]
[EventType "k.o."]
[EventCountry "NET"]
[SourceTitle "playchess.com"]
[Source "ChessBase"]
[SourceQuality "1"]
[TimeControl "600+2"]

1. d4 {[%emt 0:00:03]} d5 {[%emt 0:00:04]} 2. c4 {[%emt 0:00:06]} e6 {[%emt 0:00:01]} 3. Nf3 {[%emt 0:00:03]} c5 {[%emt 0:00:17]} 4. cxd5 {[%emt 0:00:17]} exd5 {[%emt 0:00:02]} 5. g3 {[%emt 0:00:01]} Nc6 {[%emt 0:00:01]} 6. Bg2 {[%emt 0:00:01]} Nf6 {[%emt 0:00:01]} 7. O-O {[%emt 0:00:01]} Be7 {[%emt 0:00:01]} 8. dxc5 {[%emt 0:00:17]} Bxc5 {[%emt 0:00:02]} 9. a3 {[%emt 0:00:00]} Ne4 {[%emt 0:00:02]} 10. b4 {[%emt 0:00:50]} Be7 {[%emt 0:00:02]} 11. Bb2 {[%emt 0:00:06]} Bf6 {[%emt 0:00:04]} 12. Qb3 {[%emt 0:02:07]} O-O {[%emt 0:01:07]} 13. Nbd2 {[%emt 0:00:53]} Be6 {[%emt 0:00:04]} 14. Rad1 {[%emt 0:00:09]} Qe7 {[%emt 0:00:23]} 15. Bxf6 {[%emt 0:00:45]} Qxf6 {[%emt 0:00:04]} 16. b5 {[%emt 0:00:02]} Ne7 {[%emt 0:00:30]} 17. Qb4 {[%emt 0:00:14]} Nc3 {[%emt 0:00:42]} 18. Rde1 {[%emt 0:00:02]} Rfc8 {[%emt 0:00:37]} 19. Nd4 {[%emt 0:00:30]} a5 {[%emt 0:00:23]} 20. bxa6 {[%emt 0:00:04]} Nc6 {[%emt 0:00:14]} 21. Nxc6 {[%emt 0:00:13]} bxc6 {[%emt 0:00:01]} 22. e4 {[%emt 0:00:12]} d4 {[%emt 0:01:00]} 23. f4 {[%emt 0:00:39]} c5 {[%emt 0:00:59]} 24. Qb6 {[%emt 0:00:57]} Qd8 {[%emt 0:00:33]} 25. Qxd8+ {[%emt 0:01:36]} Rxd8 {[%emt 0:00:03]} 26. e5 {[%emt 0:00:10]} Rxa6 {[%emt 0:00:02]} 27. f5 {[%emt 0:00:01]} Ba2 {[%emt 0:00:04]} 28. Rf2 {[%emt 0:00:19]} d3 {[%emt 0:00:41]} 29. Bh3 {[%emt 0:00:05]} Bd5 {[%emt 0:00:26]} 30. e6 {[%emt 0:00:04]} Re8 {[%emt 0:00:10]} 31. Bf1 {[%emt 0:00:13]} c4 {[%emt 0:00:07]} 32. Rf4 {[%emt 0:00:03]} fxe6 {[%emt 0:00:11]} 33. Nxc4 {[%emt 0:00:03]} Bxc4 {[%emt 0:00:02]} 34. Rxc4 {[%emt 0:00:01]} d2 {[%emt 0:00:00]} 35. Rxe6 {[%emt 0:00:01]} Raxe6 {[%emt 0:00:02]} 0-1

[Event "CCT Chessable Masters D-II 2024"]
[Site "Online"]
[Date "2024.02.03"]
[Round "51"]
[White "Micki-taryan"]
[Black "Yu, Yangyi"]
[Result "1/2-1/2"]
[ECO "D19"]
[WhiteElo "2623"]
[BlackElo "2720"]
[Annotator "TA"]
[PlyCount "107"]
[EventDate "2024.01.12"]
[EventType "k.o."]
[EventCountry "NET"]
[SourceTitle "playchess.com"]
[Source "ChessBase"]
[SourceQuality "1"]
[TimeControl "600+2"]

{[%evp 35,107,14,20,9,10,0,0,-13,0,0,0,0,0,0,0,0,0,-71,-45,-222,-229,-222,-221,-216,-135,-145,-145,-160,-158,-154,-157,-141,-76,-132,-118,-625,-107,-105,-95,-105,-93,-127,-100,-104,-97,-164,-53,-52,0,0,0,-191,0,0,0,0,0,0,0,0,0,0,0,0,0,0,0,0,0,0,0,0,0,0]} 1. d4 {[%emt 0:00:02]} d5 {[%emt 0:00:04]} 2. c4 {[%emt 0:00:03]} c6 {[%emt 0:00:01]} 3. Nf3 {[%emt 0:00:02]} Nf6 {[%emt 0:00:01]} 4. Nc3 {[%emt 0:00:01]} dxc4 {[%emt 0:00:04]} 5. a4 {[%emt 0:00:01]} Bf5 {[%emt 0:00:04]} 6. e3 {[%emt 0:00:00]} e6 {[%emt 0:00:04]} 7. Bxc4 {[%emt 0:00:01]} Bb4 {[%emt 0:00:04]} 8. O-O {[%emt 0:00:00]} O-O {[%emt 0:00:02]} 9. Qe2 {[%emt 0:00:01]} Bg6 {[%emt 0:00:05]} 10. Ne5 {[%emt 0:00:01]} Nbd7 {[%emt 0:00:04]} 11. Nxg6 {[%emt 0:00:03]} hxg6 {[%emt 0:00:00]} 12. Rd1 {[%emt 0:00:04]} Qe7 {[%emt 0:01:01] 12...Qc7 is the modern continuation.} 13. e4 {[%emt 0:00:51] D19: Slav Defence: 5 a4 Bf5 6 e3: Main line with 9 Qe2.} e5 {[%emt 0:00:01]} 14. d5 {[%emt 0:00:07]} Rfd8 {[%emt 0:00:28]} 15. Bg5 {[%emt 0:00:35]} Rac8 {[%emt 0:00:43]} 16. a5 {[%emt 0:00:24]} Nc5 {[%emt 0:00:39]} 17. h4 $146 {[%emt 0:01:42]} ({Predecessor:} 17. g3 Bxc3 18. bxc3 cxd5 19. Bxd5 Ne6 20. Bxf6 gxf6 21. Qf3 Kg7 22. h4 Rc7 23. Kg2 {1-0 Hensel,O (2300)-Zawadski,A (2132) W-ch WS/M/403 email 2012}) 17... Bxc3 {[%emt 0:00:26]} 18. bxc3 {[%emt 0:00:02]} cxd5 {[%emt 0:00:01]} (18... Ncxe4 $2 19. Qxe4 Nxe4 20. Bxe7 $18) 19. Bxd5 {[%emt 0:01:32]} Ne6 {[%emt 0:00:01]} 20. Be3 {[%emt 0:00:37]} Rxc3 {[%emt 0:00:38]} 21. Qb2 {[%emt 0:00:01]} Nxd5 {[%emt 0:00:45]} 22. exd5 {[%emt 0:00:39]} Nd4 $1 {[%emt 0:00:02]} 23. Bxd4 {[%emt 0:00:05]} exd4 {[%emt 0:00:01]} 24. Rxd4 {[%emt 0:00:00]} Rc5 {[%emt 0:00:26]} 25. Qd2 {[%emt 0:00:15]} Rd6 {[%emt 0:00:16]} 26. Rd1 {[%emt 0:00:10]} (26. Rc1 $1 $11 Qc7 27. Rxc5 Qxc5 28. g3) 26... Qd8 {[%emt 0:00:06]} 27. Re1 $2 {[%emt 0:00:46]} (27. a6 $15 bxa6 28. Qb4) 27... Rcxd5 $19 {[%emt 0:00:12]} (27... Rxa5 28. Rde4 Raxd5 29. Qb4 $11) 28. Rxd5 {[%emt 0:00:15]} Rxd5 {[%emt 0:00:00]} 29. Qb4 {[%emt 0:00:25]} Rd1 {[%emt 0:00:16]} (29... Qxa5 $2 {is the wrong capture.} 30. Re8+ Kh7 31. Qf8 Qa1+ (31... Rd1+ $2 32. Kh2 $18) 32. Kh2 $18) 30. Rxd1 {[%emt 0:00:06]} Qxd1+ {[%emt 0:00:00]} 31. Kh2 {[%emt 0:00:00]} Qd5 {[%emt 0:00:21]} 32. g3 {[%emt 0:00:07]} Kh7 {[%emt 0:00:43]} 33. Kg1 {[%emt 0:00:06]} Qd1+ {[%emt 0:00:11]} (33... f6 $142 $1 34. a6 bxa6) 34. Kg2 {[%emt 0:00:02]} (34. Kh2 $142) 34... Qd7 $1 $17 {[%emt 0:00:05]} 35. Qc5 $2 {[%emt 0:00:28][%mdl 8192] [#]} (35. Kg1 $17) 35... b6 $2 {[%emt 0:00:19]} (35... Qc6+ $1 $19 {[%mdl 512] is more deadly.} 36. Qxc6 bxc6) 36. axb6 $17 {[%emt 0:00:12]} Qb7+ {[%emt 0:00:01]} 37. Kg1 {[%emt 0:00:02]} Qxb6 {[%emt 0:00:28]} 38. Qe7 {[%emt 0:00:04]} Qb1+ {[%emt 0:00:09]} 39. Kg2 {[%emt 0:00:06] [#]} Qa2 $1 {[%emt 0:00:01]} 40. Qc5 {[%emt 0:00:06]} (40. Qd7 $17 {is a better defense.}) 40... a5 {[%emt 0:00:15]} ({Black should try} 40... a6 $19 41. h5 gxh5 42. Qxh5+ Kg8) 41. h5 $15 {[%emt 0:00:01]} gxh5 {[%emt 0:00:26]} (41... Qa4 $15) 42. Qxh5+ $11 {[%emt 0:00:03]} Kg8 {[%emt 0:00:01]} 43. Qe5 $2 {[%emt 0:00:15] [#]} (43. Qd1 $11) 43... g6 $2 {[%emt 0:00:48]} (43... Qa4 $1 $19 {...Qc6+ would now be deadly.} 44. Kh2 g6 45. Qb8+ Kh7) 44. Qd4 $1 $11 {[%emt 0:00:06]} a4 {[%emt 0:00:44]} 45. Qd8+ {[%emt 0:00:00]} Kh7 {[%emt 0:00:02]} (45... Kg7 $5 46. Qd4+ $8 Kg8 $11) 46. Qh4+ {[%emt 0:00:01]} Kg7 {[%emt 0:00:01]} 47. Qd4+ {[%emt 0:00:00]} Kg8 {[%emt 0:00:01]} 48. Qd8+ {[%emt 0:00:01]} Kg7 {[%emt 0:00:00]} (48... Kh7 $5 49. Qh4+ $8 Kg7 50. Qd4+ f6 $11) 49. Qd4+ {[%emt 0:00:01]} f6 {[%emt 0:00:11]} 50. Qd7+ {[%emt 0:00:01]} Kh6 {[%emt 0:00:04]} 51. Qd8 {[%emt 0:00:43]} Kg7 {[%emt 0:00:08]} 52. Qd7+ {[%emt 0:00:02]} Kh6 {[%emt 0:00:02]} 53. Qd8 {[%emt 0:00:00]} Kg7 {[%emt 0:00:05]} 54. Qd7+ {[%emt 0:00:01]} 1/2-1/2

[Event "CCT Chessable Masters D-II 2024"]
[Site "Online"]
[Date "2024.02.03"]
[Round "51"]
[White "Vokhidov, Shamsiddin"]
[Black "tptagain"]
[Result "1/2-1/2"]
[ECO "C54"]
[WhiteElo "2596"]
[BlackElo "2660"]
[Annotator "ChessBase"]
[PlyCount "69"]
[EventDate "2024.01.12"]
[EventType "k.o."]
[EventCountry "NET"]
[SourceTitle "playchess.com"]
[Source "ChessBase"]
[SourceQuality "1"]
[TimeControl "600+2"]

1. e4 {[%emt 0:00:02]} e5 {[%emt 0:00:03]} 2. Nf3 {[%emt 0:00:02]} Nc6 {[%emt 0:00:01]} 3. Bc4 {[%emt 0:00:01]} Bc5 {[%emt 0:00:12]} 4. c3 {[%emt 0:00:05]} Nf6 {[%emt 0:00:01]} 5. d3 {[%emt 0:00:01]} d6 {[%emt 0:00:03]} 6. O-O {[%emt 0:00:06]} a5 {[%emt 0:00:08]} 7. Re1 {[%emt 0:00:05]} O-O {[%emt 0:00:17]} 8. h3 {[%emt 0:00:01]} Ba7 {[%emt 0:00:11]} 9. Nbd2 {[%emt 0:00:03]} Be6 {[%emt 0:00:09]} 10. Bb5 {[%emt 0:00:01]} Ne7 {[%emt 0:00:06]} 11. Nf1 {[%emt 0:00:02]} c6 {[%emt 0:00:12]} 12. Ba4 {[%emt 0:00:01]} Ng6 {[%emt 0:00:06]} 13. Ng3 {[%emt 0:00:02]} d5 {[%emt 0:00:28]} 14. exd5 {[%emt 0:00:42]} Nxd5 {[%emt 0:00:02]} 15. d4 {[%emt 0:00:02]} exd4 {[%emt 0:00:07]} 16. Nxd4 {[%emt 0:00:00]} Qc7 {[%emt 0:00:18]} 17. Ne4 {[%emt 0:00:11]} Rae8 {[%emt 0:01:16]} 18. Nxe6 {[%emt 0:01:11]} Rxe6 {[%emt 0:00:03]} 19. Bc2 {[%emt 0:00:02]} Rfe8 {[%emt 0:00:14]} 20. Qg4 {[%emt 0:00:16]} Ne5 {[%emt 0:01:37]} 21. Qh5 {[%emt 0:00:09]} g6 {[%emt 0:00:12]} 22. Qd1 {[%emt 0:00:37]} Nc4 {[%emt 0:00:53]} 23. Re2 {[%emt 0:02:14]} f5 {[%emt 0:00:25]} 24. Bd3 {[%emt 0:00:01]} b5 {[%emt 0:00:36]} 25. Ng5 {[%emt 0:01:07]} Bxf2+ {[%emt 0:00:56]} 26. Kxf2 {[%emt 0:00:05]} Qa7+ {[%emt 0:00:08]} 27. Kg3 {[%emt 0:00:14]} Qc7+ {[%emt 0:00:13]} 28. Kf3 {[%emt 0:00:17]} Ne5+ {[%emt 0:00:25]} 29. Rxe5 {[%emt 0:00:06]} Rxe5 {[%emt 0:00:00]} 30. Kf2 {[%emt 0:00:45]} Re1 {[%emt 0:00:15]} 31. Qc2 {[%emt 0:00:37]} Qb6+ {[%emt 0:00:28]} 32. Kg3 {[%emt 0:00:02]} Qc7+ {[%emt 0:00:05]} 33. Kf2 {[%emt 0:00:10]} Qb6+ {[%emt 0:00:02]} 34. Kg3 {[%emt 0:00:02]} Qc7+ {[%emt 0:00:01]} 35. Kf2 {[%emt 0:00:09]} 1/2-1/2

[Event "CCT Chessable Masters D-II 2024"]
[Site "Online"]
[Date "2024.02.04"]
[Round "52"]
[White "Nakamura, Hikaru"]
[Black "Mamedov, Rauf"]
[Result "1/2-1/2"]
[ECO "D34"]
[WhiteElo "2788"]
[BlackElo "2651"]
[Annotator "RC"]
[PlyCount "139"]
[EventDate "2024.01.12"]
[EventType "k.o."]
[EventCountry "NET"]
[SourceTitle "playchess.com"]
[Source "ChessBase"]
[SourceQuality "1"]
[TimeControl "600+2"]

1. d4 {[%emt 0:00:04]} d5 {[%emt 0:00:08]} 2. c4 {[%emt 0:00:06]} e6 {[%emt 0:00:01]} 3. Nc3 {[%emt 0:00:20]} c5 {[%emt 0:00:06]} 4. cxd5 {[%emt 0:00:06]} exd5 {[%emt 0:00:03]} 5. Nf3 {[%emt 0:00:27]} Nc6 {[%emt 0:00:02]} 6. g3 {[%emt 0:00:19]} Nf6 {[%emt 0:00:01]} 7. Bg2 {[%emt 0:00:01]} Be7 {[%emt 0:00:01]} 8. O-O {[%emt 0:00:16]} O-O {[%emt 0:00:01]} 9. dxc5 {[%emt 0:00:01]} Bxc5 {[%emt 0:00:02]} 10. Na4 {[%emt 0:00:01]} Be7 {[%emt 0:00:03]} 11. Be3 {[%emt 0:00:02]} Bg4 {[%emt 0:00:36]} 12. Rc1 {[%emt 0:00:19]} Rc8 {[%emt 0:00:03]} 13. Nc5 {[%emt 0:00:31]} Bxc5 {[%emt 0:00:51]} 14. Rxc5 {[%emt 0:00:11]} Re8 {[%emt 0:00:01]} 15. h3 {[%emt 0:00:23]} Bxf3 {[%emt 0:00:20]} 16. exf3 {[%emt 0:00:48]} d4 {[%emt 0:01:43]} 17. Bg5 {[%emt 0:00:42]} Qb6 {[%emt 0:00:01]} 18. Rc1 {[%emt 0:00:30]} Nd7 {[%emt 0:00:24]} 19. f4 {[%emt 0:01:11]} Nf8 {[%emt 0:01:28]} 20. f5 {[%emt 0:00:15]} Qa5 {[%emt 0:00:25]} 21. Qg4 {[%emt 0:00:10]} h5 {[%emt 0:00:19]} 22. Qxh5 {[%emt 0:00:15]} Qxf5 {[%emt 0:00:01]} 23. Qg4 {[%emt 0:00:01]} Qxg4 {[%emt 0:00:22]} 24. hxg4 {[%emt 0:00:01]} Re2 {[%emt 0:00:01]} 25. b4 {[%emt 0:00:32]} Ne6 {[%emt 0:00:03]} 26. Bf4 {[%emt 0:00:20]} Nxf4 {[%emt 0:00:22]} 27. gxf4 {[%emt 0:00:01]} d3 {[%emt 0:00:11]} 28. Bf3 {[%emt 0:02:15]} Rb2 {[%emt 0:00:09]} 29. a3 {[%emt 0:00:12]} d2 {[%emt 0:00:20]} 30. Rc3 {[%emt 0:00:04]} Re8 {[%emt 0:00:04]} 31. Re3 {[%emt 0:00:04]} Kf8 {[%emt 0:01:02]} 32. Bxc6 {[%emt 0:00:11]} bxc6 {[%emt 0:00:10]} 33. Rd1 {[%emt 0:00:04]} Ra2 {[%emt 0:00:45]} 34. Kf1 {[%emt 0:00:07]} Rxe3 {[%emt 0:00:05]} 35. fxe3 {[%emt 0:00:00]} Rxa3 {[%emt 0:00:00]} 36. Ke2 {[%emt 0:00:00]} Rb3 {[%emt 0:00:21]} 37. Rxd2 {[%emt 0:00:01]} Rxb4 {[%emt 0:00:01]} 38. Rd7 {[%emt 0:00:01]} a5 {[%emt 0:00:15]} 39. Rc7 {[%emt 0:00:06]} Rb6 {[%emt 0:00:11]} 40. Ra7 {[%emt 0:00:02]} Rb5 {[%emt 0:00:00]} 41. Kd3 {[%emt 0:00:02]} g6 {[%emt 0:00:04]} 42. Ra6 {[%emt 0:00:07]} Rc5 {[%emt 0:00:08]} 43. Kd4 {[%emt 0:00:01]} Rd5+ {[%emt 0:00:02]} 44. Kc4 {[%emt 0:00:01]} Rd1 {[%emt 0:00:05]} 45. Rxa5 {[%emt 0:00:01]} Ke7 {[%emt 0:00:00]} 46. Ra7+ {[%emt 0:00:02]} Ke6 {[%emt 0:00:01]} 47. Rc7 {[%emt 0:00:01]} Rc1+ {[%emt 0:00:02]} 48. Kd4 {[%emt 0:00:01]} Rd1+ {[%emt 0:00:03]} 49. Kc3 {[%emt 0:00:02]} Rc1+ {[%emt 0:00:01]} 50. Kd3 {[%emt 0:00:01]} Rc5 {[%emt 0:00:03]} 51. g5 {[%emt 0:00:02]} f6 {[%emt 0:00:01]} 52. Rg7 {[%emt 0:00:02]} fxg5 {[%emt 0:00:06]} 53. Rxg6+ {[%emt 0:00:01]} Kf7 {[%emt 0:00:00]} 54. Rxg5 {[%emt 0:00:02]} Rxg5 {[%emt 0:00:01]} 55. fxg5 {[%emt 0:00:00]} Kg6 {[%emt 0:00:00]} 56. Kd4 {[%emt 0:00:07]} Kxg5 {[%emt 0:00:01]} 57. Ke5 {[%emt 0:00:01]} Kg6 {[%emt 0:00:04]} 58. e4 {[%emt 0:00:03]} Kf7 {[%emt 0:00:06]} 59. Kd6 {[%emt 0:00:01]} Ke8 {[%emt 0:00:02]} 60. Kxc6 {[%emt 0:00:02]} Ke7 {[%emt 0:00:01]} 61. Kd5 {[%emt 0:00:01]} Kd7 {[%emt 0:00:01]} 62. Ke5 {[%emt 0:00:01]} Ke7 {[%emt 0:00:01]} 63. Kf5 {[%emt 0:00:00]} Kf7 {[%emt 0:00:00]} 64. e5 {[%emt 0:00:00]} Ke7 {[%emt 0:00:01]} 65. e6 {[%emt 0:00:00]} Ke8 {[%emt 0:00:00]} 66. Ke5 {[%emt 0:00:00]} Ke7 {[%emt 0:00:01]} 67. Kf5 {[%emt 0:00:01]} Ke8 {[%emt 0:00:01]} 68. Kf6 {[%emt 0:00:00]} Kf8 {[%emt 0:00:00]} 69. e7+ {[%emt 0:00:00]} Ke8 {[%emt 0:00:01]} 70. Ke6 {[%emt 0:00:37]} 1/2-1/2

[Event "CCT Chessable Masters D-II 2024"]
[Site "Online"]
[Date "2024.02.04"]
[Round "52"]
[White "AnishGiri"]
[Black "Sevian, Samuel"]
[Result "1-0"]
[ECO "D38"]
[WhiteElo "2731"]
[BlackElo "2697"]
[Annotator "ChessBase"]
[PlyCount "87"]
[EventDate "2024.01.12"]
[EventType "k.o."]
[EventCountry "NET"]
[SourceTitle "playchess.com"]
[Source "ChessBase"]
[SourceQuality "1"]
[TimeControl "600+2"]

1. d4 {[%emt 0:00:05]} Nf6 {[%emt 0:00:04]} 2. c4 {[%emt 0:00:00]} e6 {[%emt 0:00:01]} 3. Nf3 {[%emt 0:00:00]} d5 {[%emt 0:00:01]} 4. Nc3 {[%emt 0:00:01]} Bb4 {[%emt 0:00:01]} 5. cxd5 {[%emt 0:00:02]} exd5 {[%emt 0:00:01]} 6. Bg5 {[%emt 0:00:00]} h6 {[%emt 0:00:04]} 7. Bh4 {[%emt 0:00:01]} O-O {[%emt 0:00:02]} 8. e3 {[%emt 0:00:02]} Bf5 {[%emt 0:00:01]} 9. Be2 {[%emt 0:00:05]} Nbd7 {[%emt 0:00:05]} 10. Qb3 {[%emt 0:00:01]} Bxc3+ {[%emt 0:00:04]} 11. Qxc3 {[%emt 0:00:02]} g5 {[%emt 0:00:02]} 12. Bg3 {[%emt 0:00:00]} Ne4 {[%emt 0:00:00]} 13. Qb3 {[%emt 0:00:01]} c6 {[%emt 0:00:12]} 14. Qxb7 {[%emt 0:00:38]} Qa5+ {[%emt 0:01:22]} 15. b4 {[%emt 0:00:03]} Qa4 {[%emt 0:01:19]} 16. O-O {[%emt 0:00:53]} Nxg3 {[%emt 0:01:45]} 17. hxg3 {[%emt 0:00:05]} Rab8 {[%emt 0:00:20]} 18. Qc7 {[%emt 0:00:16]} Rxb4 {[%emt 0:00:09]} 19. Bd1 {[%emt 0:01:53]} Qa6 {[%emt 0:00:15]} 20. Qd6 {[%emt 0:00:06]} Rbb8 {[%emt 0:01:39]} 21. Bb3 {[%emt 0:01:37]} Be6 {[%emt 0:00:32]} 22. Bxd5 {[%emt 0:00:07]} Bxd5 {[%emt 0:00:01]} 23. Qxd7 {[%emt 0:00:00]} Qd3 {[%emt 0:00:44]} 24. Qd6 {[%emt 0:01:02]} Kg7 {[%emt 0:00:11]} 25. Rfd1 {[%emt 0:00:20]} Qe4 {[%emt 0:00:56]} 26. Qe5+ {[%emt 0:00:01]} Qxe5 {[%emt 0:00:13]} 27. Nxe5 {[%emt 0:00:01]} Rb2 {[%emt 0:00:01]} 28. Nd3 {[%emt 0:00:54]} Rxa2 {[%emt 0:00:05]} 29. Rxa2 {[%emt 0:00:21]} Bxa2 {[%emt 0:00:00]} 30. Ra1 {[%emt 0:00:01]} Bd5 {[%emt 0:00:01]} 31. Rxa7 {[%emt 0:00:38]} Rb8 {[%emt 0:00:01]} 32. g4 {[%emt 0:00:22]} Be6 {[%emt 0:00:24]} 33. f3 {[%emt 0:00:02]} Rb1+ {[%emt 0:00:13]} 34. Kf2 {[%emt 0:00:19]} Kg8 {[%emt 0:00:00]} 35. Rc7 {[%emt 0:00:08]} Bc4 {[%emt 0:00:05]} 36. Ne5 {[%emt 0:00:08]} Rb2+ {[%emt 0:00:01]} 37. Kg1 {[%emt 0:00:01]} Rb1+ {[%emt 0:00:06]} 38. Kh2 {[%emt 0:00:02]} Bf1 {[%emt 0:00:11]} 39. Nxf7 {[%emt 0:00:09]} Rb2 {[%emt 0:00:02]} 40. Nxh6+ {[%emt 0:00:02]} Kf8 {[%emt 0:00:01]} 41. Kg1 {[%emt 0:00:08]} Bxg2 {[%emt 0:00:01]} 42. Rf7+ {[%emt 0:00:16]} Ke8 {[%emt 0:00:00]} 43. Rf5 {[%emt 0:00:00]} Re2 {[%emt 0:00:05]} 44. Nf7 {[%emt 0:00:03]} 1-0